[Event "Romanian Championship 2024"]
[Site "Eforie Nord"]
[Date "2024.02.24"]
[Round "1.1"]
[White "Lupulescu, Constantin"]
[Black "Ciocani, Iosif"]
[Result "1-0"]
[ECO "B82"]
[WhiteElo "2589"]
[BlackElo "2063"]
[Annotator "TA"]
[PlyCount "119"]
[EventDate "2024.02.24"]
[EventType "swiss"]
[EventCountry "ROU"]
[SourceTitle "playchess.com"]
[Source "ChessBase"]
[SourceQuality "1"]
[TimeControl "40/5400+30:900+30"]

{[%evp 27,119,-50,0,0,0,-44,-45,-56,-51,-69,-56,-162,-137,-139,-41,-272,-29,-35,0,0,0,0,0,0,0,0,0,0,0,0,0,0,0,0,0,0,0,0,16,28,20,17,16,20,170,157,162,107,258,275,317,295,350,316,550,535,780,794,700,601,970,752,666,998,1327,1155,1315,1448,1379,1020,6111,4133,6382,4299,5789,5352,29942,12790,12789,8541,5069,2728,29979,29980,29983,29984,29988,29984,29984,4578,29985,29984,29992,29993]} 1. e4 {[%emt 0:00:02]} c5 {[%emt 0:00:06]} 2. Nf3 {[%emt 0:00:04]} e6 {[%emt 0:00:06]} 3. d4 {[%emt 0:00:05]} cxd4 {[%emt 0:00:05]} 4. Nxd4 {[%emt 0:00:04]} Nc6 {[%emt 0:00:07]} 5. a3 {[%emt 0:00:06]} Qc7 {[%emt 0:01:30]} 6. Be3 {[%emt 0:00:26]} Nf6 {[%emt 0:06:36]} 7. Nc3 {[%emt 0:00:27]} a6 {[%emt 0:01:32]} 8. f4 {[%emt 0:01:23]} d6 {[%emt 0:03:29]} 9. Qf3 {[%emt 0:03:17]} Be7 {[%emt 0:10:11]} 10. O-O-O {[%emt 0:05:11] B82: Sicilian Scheveningen: 6 f4.} O-O {[%emt 0:15:51]} 11. Rg1 {[%emt 0:24:13]} Nxd4 {[%emt 0:22:05]} 12. Rxd4 {[%emt 0:00:16]} b5 {[%emt 0:02:20]} 13. g4 {[%emt 0:08:20]} d5 {[%emt 0:02:21]} 14. e5 {[%emt 0:01:13] [#]} (14. g5 $11 Nxe4 15. Nxe4) 14... Ne4 {[%emt 0:01:57]} (14... Nd7 $1 $15) 15. Nxe4 $11 {[%emt 0:06:40]} dxe4 {[%emt 0:00:07]} 16. Qf2 $146 {[%emt 0:01:18]} ({Predecessor:} 16. Qxe4 Bb7 17. Qd3 Bc5 18. Rd6 Bxd6 19. exd6 Qd7 20. Bc5 Bd5 21. Qd4 Qc6 22. Bd3 {½-½ Kulon,K (2319)-Vetoshko,V (2499) Bayern-chI Bank Hofmann 26th 2023 (3)}) 16... Bb7 {[%emt 0:05:32]} 17. Bg2 {[%emt 0:01:46]} f6 {[%emt 0:07:22]} 18. Rgd1 {[%emt 0:09:51]} (18. Bxe4 $2 fxe5 19. Bxb7 exd4 (19... Qxb7 $2 20. Rd3 $17) 20. Bxa8 dxe3 21. Qxe3 Rxa8 $19) 18... Bc6 $1 {[%emt 0:00:40]} 19. Qg3 {[%emt 0:05:05]} (19. Bxe4 $2 fxe5 $19) (19. Rxe4 $15 Bxe4 20. Bxe4) 19... fxe5 $19 {[%emt 0:02:47]} 20. fxe5 {[%emt 0:00:10]} Bc5 {[%emt 0:00:48]} (20... Rac8 $17 {Strongly threatening ...Bd5.} 21. Qe1 Qxe5) 21. Rd6 $2 {[%emt 0:00:36]} (21. R4d2 $1 $15 Bd5 22. Bxc5 Qxc5 23. Re1) 21... Bxd6 $2 {[%emt 0:02:22]} (21... Rf3 $1 $19 22. Bxc5 Rxg3 23. hxg3 Bd5) 22. exd6 $11 {[%emt 0:00:04]} Qf7 {[%emt 0:01:22]} 23. Bg5 {[%emt 0:07:33]} Bd5 {[%emt 0:05:01]} 24. Qe5 {[%emt 0:07:36]} Qb7 {[%emt 0:01:45]} 25. Re1 {[%emt 0:01:58]} Rf3 {[%emt 0:05:57]} 26. Bxf3 {[%emt 0:04:35]} exf3 {[%emt 0:00:05]} 27. Rd1 {[%emt 0:01:26]} Qc6 {[%emt 0:01:03]} (27... f2 $6 28. Rf1 $18) 28. Rd2 {[%emt 0:02:38]} a5 {[%emt 0:00:08]} 29. b3 {[%emt 0:02:25]} Rf8 {[%emt 0:00:48]} (29... Bxb3 $2 30. d7 Bd5 31. d8=Q+ $18 (31. d8=R+ Rxd8 32. Bxd8 b4 $18)) 30. Bh4 {[%emt 0:00:41]} h6 {[%emt 0:00:45]} (30... Bxb3 $2 {loses.} 31. d7 Bd5 32. d8=Q $18 (32. d8=R Rxd8 33. Bxd8 Qc5 $18)) 31. Kb2 {[%emt 0:01:45]} Rf7 {[%emt 0:00:08]} 32. Bg3 {[%emt 0:01:37]} Qc5 {[%emt 0:00:29]} 33. Qc3 {[%emt 0:01:06]} Qxc3+ {[%emt 0:00:58]} 34. Kxc3 {[%emt 0:00:03]} Kf8 $1 {[%emt 0:00:22]} 35. Kd4 {[%emt 0:00:46]} b4 {[%emt 0:00:18]} (35... Ke8 $11 {and Black has nothing to worry.}) 36. axb4 {[%emt 0:00:59]} axb4 {[%emt 0:00:06]} 37. Kc5 {[%emt 0:00:05]} Ke8 $2 {[%emt 0:00:00]} (37... Rb7 $16 {might work better.}) 38. Kxb4 $18 {[%emt 0:00:09]} Kd7 {[%emt 0:01:36]} 39. Kc5 {[%emt 0:01:00]} Bb7 {[%emt 0:00:20]} 40. c4 {[%emt 0:00:00]} Rf8 $2 {[%emt 0:00:00]} (40... e5 {was worth a try.} 41. b4 (41. Bxe5 $2 {is the wrong capture.} f2 $19) 41... Rf8) 41. Ra2 $18 {[%emt 0:05:33]} Ra8 {[%emt 0:01:38]} 42. Rxa8 {[%emt 0:03:00]} Bxa8 {[%emt 0:00:07]} 43. Kd4 {[%emt 0:02:46]} f2 {[%emt 0:00:08]} 44. Bxf2 {[%emt 0:00:02]} Kxd6 {[%emt 0:00:06]} 45. Bg3+ {[%emt 0:00:07]} Kd7 {[%emt 0:00:29]} 46. Be5 {[%emt 0:01:44]} g6 {[%emt 0:00:48]} 47. Bg7 {[%emt 0:00:13]} Bf3 {[%emt 0:03:31]} 48. Bxh6 {[%emt 0:00:24]} Bxg4 {[%emt 0:00:06]} 49. b4 {[%emt 0:01:01]} Kc6 {[%emt 0:01:11]} 50. Bg5 {[%emt 0:00:58]} Be2 {[%emt 0:02:13]} 51. b5+ {[%emt 0:00:08]} Kb6 {[%emt 0:01:25]} 52. Bd8+ {[%emt 0:00:59]} Kb7 {[%emt 0:00:04]} 53. Kc5 {[%emt 0:01:50]} e5 {[%emt 0:01:19]} 54. Kb4 {[%emt 0:00:28]} e4 {[%emt 0:00:57]} 55. c5 {[%emt 0:00:18]} Bf1 {[%emt 0:00:51]} 56. c6+ {[%emt 0:00:19]} Ka7 {[%emt 0:00:06]} 57. Bg5 {[%emt 0:00:09]} Kb6 {[%emt 0:00:09] [#]} 58. Be3+ $1 {[%emt 0:00:04]} Kc7 {[%emt 0:00:04]} 59. Kc5 {[%emt 0:00:03]} Bh3 {[%emt 0:00:22]} 60. b6+ {[%emt 0:00:09]} 1-0

[Event "Romanian Championship 2024"]
[Site "Eforie Nord"]
[Date "2024.02.24"]
[Round "1.2"]
[White "Gales, Randi-Ioan"]
[Black "Parligras, Mircea-Emilian"]
[Result "0-1"]
[ECO "A13"]
[WhiteElo "2062"]
[BlackElo "2539"]
[Annotator "TA"]
[PlyCount "108"]
[EventDate "2024.02.24"]
[EventType "swiss"]
[EventCountry "ROU"]
[SourceTitle "playchess.com"]
[Source "ChessBase"]
[SourceQuality "1"]
[TimeControl "40/5400+30:900+30"]

{[%evp 19,108,16,50,65,58,29,32,35,28,37,32,33,38,31,25,27,41,29,33,29,21,22,29,41,49,34,22,14,34,23,88,16,24,0,0,0,0,0,0,-2,-4,-83,0,0,0,0,0,0,0,0,0,0,0,0,0,0,71,66,76,0,0,-14,0,0,0,0,0,-1239,-1208,-6103,-5335,-29969,0,0,0,0,0,-29975,-29977,-29977,-29978,-29978,-29979,-29979,-29980,-29980,-29981,-29985,-29986,-29986,-29987]} 1. c4 {[%emt 0:00:04]} Nf6 {[%emt 0:00:56]} 2. g3 {[%emt 0:00:10]} e6 {[%emt 0:00:16]} 3. Bg2 {[%emt 0:00:04]} d5 {[%emt 0:00:07]} 4. Nf3 {[%emt 0:00:05]} dxc4 {[%emt 0:02:00]} 5. Qa4+ {[%emt 0:00:09]} Nbd7 {[%emt 0:00:49]} 6. Qxc4 {[%emt 0:00:08]} a6 $1 {[%emt 0:00:21] 6...a6 is better than 6...c5.} 7. Qc2 {[%emt 0:00:05]} c5 {[%emt 0:02:55]} 8. Nc3 {[%emt 0:00:33]} Qc7 {[%emt 0:04:18] A13: English Opening: 1...e6.} 9. d4 {[%emt 0:00:34]} b6 {[%emt 0:05:58]} 10. Bf4 {[%emt 0:00:20]} Bd6 {[%emt 0:00:19]} 11. Bxd6 {[%emt 0:00:12]} Qxd6 {[%emt 0:00:05]} 12. Ne4 {[%emt 0:00:13]} (12. dxc5 $5 Qxc5 13. Nd2 $14) 12... Nxe4 {[%emt 0:02:45]} 13. Qxe4 {[%emt 0:00:15]} Rb8 {[%emt 1:16:11]} 14. dxc5 {[%emt 0:01:11]} Nxc5 {[%emt 0:00:00]} 15. Qe3 {[%emt 0:01:24]} Bb7 {[%emt 0:00:00]} 16. O-O {[%emt 0:04:55]} O-O {[%emt 0:00:00]} 17. Rfd1 {[%emt 0:05:24]} Qe7 {[%emt 0:00:00]} 18. Rd4 $146 {[%emt 0:16:51]} ({Predecessor:} 18. Rd2 Rfd8 19. Rad1 Rxd2 20. Qxd2 Bd5 21. Ne5 Bxg2 22. Kxg2 f6 23. Nd7 Rc8 24. Nxc5 Qxc5 {0-1 Yim,S (2328)-Wang,J (2481) Los Angeles 1000GM GM 02 2023 (4.3)}) 18... a5 {[%emt 0:00:00]} 19. Rad1 {[%emt 0:02:11]} Rfd8 {[%emt 0:00:00]} 20. Ne5 {[%emt 0:07:22]} Bxg2 {[%emt 0:00:00]} 21. Kxg2 {[%emt 0:00:34]} Qc7 {[%emt 0:00:00]} 22. Qd2 {[%emt 0:07:25]} Rxd4 {[%emt 0:00:00]} 23. Qxd4 {[%emt 0:00:02]} h6 {[%emt 0:00:00]} 24. Qd6 {[%emt 0:03:49]} Qb7+ {[%emt 0:00:00]} (24... Rc8 $11) 25. Kg1 {[%emt 0:14:45]} (25. f3 $16) 25... Rc8 $11 {[%emt 0:00:00]} 26. Nc4 {[%emt 0:04:20]} Na4 {[%emt 0:00:00]} 27. Qf4 {[%emt 0:08:17]} Qc7 {[%emt 0:00:00]} 28. Nd6 {[%emt 0:03:13]} Rd8 $1 {[%emt 0:00:00]} 29. Rd4 {[%emt 0:03:03]} Rd7 {[%emt 0:00:00]} 30. Qe5 {[%emt 0:09:38]} (30. Rxa4 $11 Qxd6 31. Qxd6 Rxd6 32. Ra3) 30... Qc5 {[%emt 0:00:00]} (30... Nxb2 $17 {[%cal Ob2a4]} 31. h4 Na4) 31. Qxc5 $11 {[%emt 0:00:44]} Nxc5 {[%emt 0:00:00]} 32. Kf1 {[%emt 0:04:40]} Kf8 {[%emt 0:03:48]} 33. Ke1 {[%emt 0:01:07]} Ke7 {[%emt 0:03:59]} 34. Nc8+ {[%emt 0:00:18]} Kd8 {[%emt 0:00:05]} 35. Rxd7+ {[%emt 0:00:10]} Nxd7 {[%emt 0:00:05]} 36. Nd6 {[%emt 0:00:05]} Ke7 {[%emt 0:00:53]} 37. Nc4 {[%emt 0:00:16]} f5 {[%emt 0:01:29]} (37... Kd8 $11 {remains equal.}) 38. Kd2 $16 {[%emt 0:01:01]} e5 {[%emt 0:00:12]} 39. Ke3 {[%emt 0:03:43]} (39. a4 $16) 39... Ke6 $11 {[%emt 0:00:50]} 40. f4 {[%emt 0:00:00]} Kd5 {[%emt 0:00:00]} 41. Nxe5 {[%emt 0:08:41]} Nxe5 {[%emt 0:00:59]} 42. fxe5 {[%emt 0:00:03]} Kxe5 {[%emt 0:00:07]} 43. h4 $2 {[%emt 0:00:22][%mdl 8192]} (43. a4 $11) 43... g5 $19 {[%emt 0:02:24]} 44. hxg5 {[%emt 0:02:39]} hxg5 {[%emt 0:00:02]} 45. a4 {[%emt 0:03:13] [#]} Kd5 $2 {[%emt 0:00:21]} (45... g4 $1 {mates} 46. Kf2 Kd4 47. Kg2 Ke4 (47... Ke3 $2 48. Kf1 $19) 48. Kf2 f4 49. Kg2 fxg3 (49... Ke3 50. gxf4 Kxf4 51. Kf2 g3+ 52. Kg2 Ke3 53. Kxg3 Kxe2 54. Kf4 Kd2 55. Ke5 Kc1 56. Kf6 Kxb2 57. Ke6 Kb3 58. Kd5 Kxa4 59. Kc4 b5+ 60. Kd5 b4 61. Kc4 b3 62. Kc3 Ka3 63. Kd2 b2 64. Ke2 a4 65. Kf2 b1=Q 66. Kg2 Kb4 67. Kf2 Qe4 68. Kg3 a3 69. Kf2 a2 70. Kg3 a1=Q 71. Kh3 Qh8+ 72. Kg3 Qhh4#) 50. Kxg3 Ke3 51. Kxg4 Kxe2 52. Kh3 Kd2 53. Kg4 Kc2 54. Kg5 Kxb2 (54... Kb3 {is a self mate.} 55. Kh4 Kxa4 56. Kh5 Kb3 57. Kh4 Kxb2 58. Kh5 a4 59. Kg4 a3 60. Kh5 a2 61. Kg5 b5 62. Kh6 b4 63. Kg7 b3 64. Kh8 a1=Q 65. Kh7 Ka2 66. Kg8 b2 67. Kf7 b1=Q 68. Ke6 Qd4 69. Ke7 Qh7+ 70. Kf8 Qdh8#) 55. Kf5 Ka3 56. Kg6 Kxa4 57. Kf6 Kb3 58. Kg7 a4 59. Kg6 a3 60. Kg5 a2 61. Kf4 a1=Q (61... a1=B {gets mated.} 62. Kg4 Kc4 63. Kf4 b5 64. Kg4 b4 65. Kh5 b3 66. Kh6 b2 67. Kh5 b1=Q 68. Kg4 Qe4+ 69. Kg3 Be5+ 70. Kf2 Bh2 71. Kf1 Kd3 72. Kf2 Qe2#) 62. Kg5 Qe5+ 63. Kg4 Kc3 64. Kf3 Kd3 65. Kf2 Qe3+ 66. Kf1 b5 67. Kg2 Ke2 68. Kh2 Kf2 69. Kh1 Qh6#) 46. Kd3 $11 {[%emt 0:01:09]} f4 {[%emt 0:09:12]} 47. gxf4 {[%emt 0:02:43]} gxf4 {[%emt 0:00:02]} 48. e3 $2 {[%emt 0:00:19][%mdl 8192] [#]} (48. b3 $11) 48... fxe3 $1 {[%emt 0:01:24]} 49. Kxe3 {[%emt 0:00:02]} Kc4 {[%emt 0:00:08]} 50. Kd2 {[%emt 0:00:15]} Kb3 {[%emt 0:00:05]} 51. Kc1 {[%emt 0:00:04]} Kxa4 {[%emt 0:00:04]} 52. Kc2 {[%emt 0:00:51]} Kb4 {[%emt 0:00:05]} 53. b3 {[%emt 0:01:44]} Ka3 {[%emt 0:00:22]} 54. Kc3 {[%emt 0:00:15]} b5 {[%emt 0:00:10]} 0-1

[Event "Romanian Championship 2024"]
[Site "Eforie Nord"]
[Date "2024.02.24"]
[Round "1.3"]
[White "Gavrilescu, David"]
[Black "Sava, Robert-Gabriel"]
[Result "1-0"]
[ECO "C02"]
[WhiteElo "2523"]
[BlackElo "2053"]
[Annotator "TA"]
[PlyCount "59"]
[EventDate "2024.02.24"]
[EventType "swiss"]
[EventCountry "ROU"]
[SourceTitle "playchess.com"]
[Source "ChessBase"]
[SourceQuality "1"]
[TimeControl "40/5400+30:900+30"]

{[%evp 17,59,-1,29,19,24,24,58,52,51,73,44,54,43,40,104,110,108,70,116,108,252,230,296,302,383,368,631,625,1101,1125,1190,1172,1266,1260,1244,1119,1241,1153,1560,1602,1575,1512,1475,1405]} 1. e4 {[%emt 0:00:18]} e6 {[%emt 0:00:16]} 2. d4 {[%emt 0:00:30]} d5 {[%emt 0:00:13]} 3. e5 {[%emt 0:00:17]} c5 {[%emt 0:00:19]} 4. c3 {[%emt 0:00:18]} Nc6 {[%emt 0:00:21]} 5. Nf3 {[%emt 0:00:21]} Qb6 {[%emt 0:00:23]} 6. Be2 {[%emt 0:00:32]} cxd4 {[%emt 0:00:22]} 7. cxd4 {[%emt 0:00:17]} Nge7 {[%emt 0:00:19]} 8. Na3 {[%emt 0:01:56]} Nf5 {[%emt 0:00:25]} 9. Nc2 {[%emt 0:00:21]} Nb4 {[%emt 0:00:21]} 10. Nxb4 {[%emt 0:06:09]} Bxb4+ {[%emt 0:00:11]} 11. Kf1 {[%emt 0:00:06]} Be7 {[%emt 0:02:12]} 12. g4 {[%emt 0:07:22][%cal Bg2g4,Bg4g5,Bg5h6][%mdl 32] White is slightly better.} Nh4 {[%emt 0:07:09]} 13. Nxh4 {[%emt 0:10:12]} Bxh4 {[%emt 0:00:14]} 14. g5 {[%emt 0:00:17]} h6 {[%emt 0:01:17]} 15. gxh6 {[%emt 0:02:52]} g6 {[%emt 0:00:41]} ({Black should play} 15... gxh6 $14 16. Rg1 Bd7) 16. Be3 {[%emt 0:05:36]} Bd7 {[%emt 0:00:37]} 17. Rc1 {[%emt 0:04:53]} Bc6 {[%emt 0:03:09]} (17... Qxb2 $14 18. Bd3 Qa3) 18. Qd2 {[%emt 0:01:46]} Be7 {[%emt 0:02:22] This costs Black the game.} (18... a6 $16 {was worth a try.} 19. Rg1 Be7) 19. h4 $18 {[%emt 0:06:17]} O-O-O {[%emt 0:06:59]} 20. Bg5 {[%emt 0:02:01]} Rde8 {[%emt 0:01:11]} 21. Rh3 {[%emt 0:00:31]} Qb4 $2 {[%emt 0:38:16]} (21... Kd7 22. Rb3 Qc7) 22. Qf4 {[%emt 0:10:39] White is clearly winning.} Qa4 {[%emt 0:08:38]} 23. Bxe7 {[%emt 0:01:12]} Rxe7 {[%emt 0:00:06] Black is weak on the dark squares} 24. Ra3 {[%emt 0:00:08]} Qb4 {[%emt 0:00:15]} 25. Qf6 {[%emt 0:01:32]} Ree8 {[%emt 0:01:05] [#]} 26. Rxc6+ $1 {[%emt 0:00:21][%mdl 512]} bxc6 {[%emt 0:00:12]} 27. Ba6+ {[%emt 0:00:09]} Kd7 {[%emt 0:01:58]} 28. Rb3 {[%emt 0:00:06]} Qxb3 {[%emt 0:00:33]} 29. axb3 {[%emt 0:00:09]} Rh7 {[%emt 0:00:06] [#]} 30. h5 $1 {[%emt 0:00:15] Weighted Error Value: White=0.05 (flawless) /Black=0.73.  Mistake:       	---       	Black=4      Inaccurate:     	White=1     	Black=2      OK:         	White=7     	Black=2      Best:        	White=2     	---} 1-0

[Event "Romanian Championship 2024"]
[Site "Eforie Nord"]
[Date "2024.02.24"]
[Round "1.4"]
[White "Buzbuchi, Ionut"]
[Black "Ghimpu, Samuel-Timotei"]
[Result "0-1"]
[ECO "B45"]
[WhiteElo "2039"]
[BlackElo "2467"]
[Annotator "RC"]
[PlyCount "98"]
[EventDate "2024.02.24"]
[EventType "swiss"]
[EventCountry "ROU"]
[SourceTitle "playchess.com"]
[Source "ChessBase"]
[SourceQuality "1"]
[TimeControl "40/5400+30:900+30"]

1. e4 {[%emt 0:00:04]} c5 {[%emt 0:00:23]} 2. Nf3 {[%emt 0:00:05]} Nc6 {[%emt 0:00:14]} 3. d4 {[%emt 0:00:15]} cxd4 {[%emt 0:00:08]} 4. Nxd4 {[%emt 0:00:05]} Nf6 {[%emt 0:00:08]} 5. Nc3 {[%emt 0:00:04]} e6 {[%emt 0:00:08]} 6. g3 {[%emt 0:01:19]} Bb4 {[%emt 0:03:55]} 7. Bg2 {[%emt 0:00:10]} O-O {[%emt 0:00:46]} 8. O-O {[%emt 0:00:58]} d6 {[%emt 0:00:14]} 9. Nde2 {[%emt 0:05:31]} a6 {[%emt 0:01:23]} 10. a3 {[%emt 0:04:47]} Bc5 {[%emt 0:02:09]} 11. b3 {[%emt 0:09:09]} Qc7 {[%emt 0:06:51]} 12. Bb2 {[%emt 0:12:09]} b5 {[%emt 0:01:08]} 13. Qd2 {[%emt 0:02:47]} Bb7 {[%emt 0:01:23]} 14. Rad1 {[%emt 0:18:19]} Rfd8 {[%emt 0:03:03]} 15. h3 {[%emt 0:01:41]} Ne5 {[%emt 0:10:20]} 16. Kh2 {[%emt 0:07:40]} d5 {[%emt 0:00:23]} 17. exd5 {[%emt 0:01:00]} exd5 {[%emt 0:00:09]} 18. Nd4 {[%emt 0:06:59]} b4 {[%emt 0:01:20]} 19. axb4 {[%emt 0:05:20]} Bxb4 {[%emt 0:00:09]} 20. Qf4 {[%emt 0:00:18]} Bd6 {[%emt 0:16:58]} 21. Qc1 {[%emt 0:03:09]} Rac8 {[%emt 0:00:57]} 22. Nf5 {[%emt 0:04:59]} Bf8 {[%emt 0:01:17]} 23. Ne2 {[%emt 0:00:56]} Ne4 {[%emt 0:12:06]} 24. Qf4 {[%emt 0:05:44]} f6 {[%emt 0:04:54]} 25. c4 {[%emt 0:03:21]} Qf7 {[%emt 0:17:43]} 26. cxd5 {[%emt 0:01:33]} Nc5 {[%emt 0:00:02]} 27. Bxe5 {[%emt 0:01:28]} fxe5 {[%emt 0:00:01]} 28. Qg4 {[%emt 0:00:08]} g6 {[%emt 0:01:57]} 29. Ne3 {[%emt 0:00:28]} a5 {[%emt 0:04:09]} 30. h4 {[%emt 0:00:12]} h5 {[%emt 0:01:32]} 31. Qg5 {[%emt 0:00:34]} Ba6 {[%emt 0:00:34]} 32. Nc4 {[%emt 0:02:56]} Qf5 {[%emt 0:01:58]} 33. Qe3 {[%emt 0:01:11]} Qc2 {[%emt 0:01:39]} 34. d6 {[%emt 0:01:15]} Qxb3 {[%emt 0:02:07]} 35. Bd5+ {[%emt 0:00:01]} Kh7 {[%emt 0:05:52]} 36. Qxe5 {[%emt 0:01:12]} Bxc4 {[%emt 0:00:00]} 37. Nf4 {[%emt 0:00:20]} Bxd5 {[%emt 0:00:00]} 38. Rxd5 {[%emt 0:00:21]} Qc2 {[%emt 0:00:00]} 39. Nxh5 {[%emt 0:00:35]} Qf5 {[%emt 0:01:07]} 40. Nf6+ {[%emt 0:00:00]} Kg7 {[%emt 0:00:00]} 41. Nh5+ {[%emt 0:03:46]} Kg8 {[%emt 0:05:26]} 42. Qd4 {[%emt 0:02:46]} Ne6 {[%emt 0:00:54]} 43. Nf6+ {[%emt 0:08:44]} Kh8 {[%emt 0:00:43]} 44. Rxf5 {[%emt 0:00:14]} Nxd4 {[%emt 0:00:14]} 45. Rxa5 {[%emt 0:00:05]} Bxd6 {[%emt 0:00:46]} 46. Ne4 {[%emt 0:00:33]} Be7 {[%emt 0:03:59]} 47. Kg2 {[%emt 0:00:18]} Rc2 {[%emt 0:02:05]} 48. h5 {[%emt 0:02:11]} Re2 {[%emt 0:00:15]} 49. Re5 {[%emt 0:01:06]} Bf6 {[%emt 0:00:06]} 0-1

[Event "Romanian Championship 2024"]
[Site "Eforie Nord"]
[Date "2024.02.24"]
[Round "1.5"]
[White "Nevednichy, Vladislav"]
[Black "Negrean, Andrei"]
[Result "1-0"]
[ECO "B65"]
[WhiteElo "2451"]
[BlackElo "1990"]
[Annotator "TA"]
[PlyCount "87"]
[EventDate "2024.02.24"]
[EventType "swiss"]
[EventCountry "ROU"]
[SourceTitle "playchess.com"]
[Source "ChessBase"]
[SourceQuality "1"]
[TimeControl "40/5400+30:900+30"]

{[%evp 29,87,20,22,6,9,3,4,21,12,15,11,8,7,0,0,0,0,0,0,0,107,120,266,264,358,291,353,345,333,339,548,543,525,513,558,499,775,690,899,929,1014,925,1037,931,983,918,1163,1050,5106,3347,5497,5122,29963,29965,29974,29975,29975,29976,29976,29976]} 1. e4 {[%emt 0:00:03]} c5 {[%emt 0:00:08]} 2. Nf3 {[%emt 0:00:05]} Nc6 {[%emt 0:00:17]} 3. d4 {[%emt 0:00:18]} cxd4 {[%emt 0:00:13]} 4. Nxd4 {[%emt 0:00:03]} Nf6 {[%emt 0:00:18]} 5. Nc3 {[%emt 0:00:12]} d6 {[%emt 0:00:15]} 6. Bg5 {[%emt 0:00:17]} e6 {[%emt 0:00:42]} 7. Qd2 {[%emt 0:00:55]} Be7 {[%emt 0:00:36]} 8. O-O-O {[%emt 0:00:11]} Nxd4 {[%emt 0:00:28]} 9. Qxd4 {[%emt 0:00:04]} O-O {[%emt 0:00:27]} 10. f4 {[%emt 0:00:42]} Qa5 {[%emt 0:01:06]} 11. e5 {[%emt 0:12:58]} dxe5 {[%emt 0:00:51]} 12. Qxe5 {[%emt 0:00:05]} Qxe5 {[%emt 0:04:12]} 13. fxe5 {[%emt 0:00:02]} Nd5 {[%emt 0:00:17][%cal Bf6d5,Bd5e7,Be7c6][%mdl 32]} 14. Bxe7 {[%emt 0:00:14]} Nxe7 {[%emt 0:00:07]} 15. Bd3 {[%emt 0:02:31]} b6 {[%emt 0:06:58]} 16. Be4 {[%emt 0:00:51]} Rb8 {[%emt 0:00:16] Black is weak on the light squares} 17. Rhe1 {[%emt 0:06:01][%cal Bh1e1,Be1e4,Be4a4][%mdl 32]} Bb7 {[%emt 0:08:52]} 18. Rd7 {[%emt 0:01:01] The position is equal.} Bxe4 {[%emt 0:02:12]} 19. Rxe4 {[%emt 0:00:44]} Nc6 {[%emt 0:04:27]} 20. Nb5 {[%emt 0:06:57]} Rfd8 {[%emt 0:11:48]} 21. Rd6 {[%emt 0:05:15]} Rxd6 {[%emt 0:14:13]} 22. exd6 $11 {[%emt 0:01:02][%mdl 4096] Endgame. KRN-KRN} a6 $1 {[%emt 0:03:13]} 23. Nc7 {[%emt 0:00:43][%cal Oe4e3]} Rd8 {[%emt 0:02:12]} 24. Ra4 {[%emt 0:03:37]} Rxd6 {[%emt 0:16:12]} (24... a5 $1 $11 {keeps the balance.}) 25. Rxa6 $16 {[%emt 0:00:07]} Rd7 {[%emt 0:08:45] A mistake that costs the game.} (25... Nb8 $16 26. Ra8 Rd8) 26. Ra8+ $18 {[%emt 0:04:45]} Rd8 {[%emt 0:00:46]} 27. Rxd8+ {[%emt 0:01:22]} Nxd8 {[%emt 0:01:10] KN-KN} 28. a4 {[%emt 0:00:04][%cal Ba2a4,Ba4b5,Bb5b6][%mdl 32]} Kf8 {[%emt 0:05:22]} 29. Na8 {[%emt 0:01:15]} b5 $2 {[%emt 0:01:01]} (29... f5 30. b4 (30. Nxb6 Kf7 $18) 30... Ke8 31. Nxb6 Nc6) 30. axb5 {[%emt 0:00:33]} Ke7 {[%emt 0:00:13]} 31. b4 {[%emt 0:02:59]} Nb7 {[%emt 0:02:05]} 32. c4 {[%emt 0:00:41][%cal Bc2c4,Bc4c5][%mdl 32]} Nd6 {[%emt 0:00:14] [#]} (32... Kd6 $142 33. Kd2 g5) 33. b6 $1 {[%emt 0:00:29] Threatens to win with c5.} ({Less strong is} 33. Nb6 Kd8 $14) 33... Kd7 {[%emt 0:00:54][%cal Od7c6]} 34. c5 {[%emt 0:00:07]} Nb7 {[%emt 0:00:09]} 35. Kd2 {[%emt 0:01:33]} f5 {[%emt 0:01:10]} 36. Nc7 {[%emt 0:00:35]} e5 {[%emt 0:00:23]} 37. Na6 {[%emt 0:01:05]} e4 {[%emt 0:04:02]} 38. Ke3 {[%emt 0:01:45]} g5 {[%emt 0:00:42]} 39. b5 {[%emt 0:00:13] [#] Black must now prevent c6+.} Na5 {[%emt 0:00:47]} 40. c6+ {[%emt 0:00:00]} Nxc6 {[%emt 0:00:00]} 41. b7 {[%emt 0:01:59] White mates.} Nb8 {[%emt 0:00:56]} 42. Nxb8+ {[%emt 0:00:06]} Kc7 {[%emt 0:00:08]} 43. Nc6 {[%emt 0:00:09]} Kxb7 {[%emt 0:00:05]} 44. Nd4 {[%emt 0:00:06] Weighted Error Value: White=0.03 (flawless) /Black=0.76.  Mistake:       	---       	Black=4      Inaccurate:     	---       	Black=1      OK:         	White=8     	Black=6      Best:        	White=2     	Black=3      Strong:       	White=1     	Black=1} 1-0